bitfinex-derivatives/quotes_ETHF0:USTF0_20260226
["timestamp","ask_amount","ask_price","bid_price","bid_amount"]
[1772111755365,7.62682624,2065.2,2064.5,0.89999196]
[1772111755565,4.05120448,2065.5,2064.5,0.89999196]
[1772111755765,7.62682563,2065.4,2064.5,0.89999196]
[1772111755966,7.62682563,2065.3,2064.5,0.89999196]
[1772111756170,4.05120448,2065.6,2064.5,0.89999196]
[1772111756360,7.62624516,2065.5,2064.5,0.89999196]
[1772111756564,7.62624516,2065.4,2064.5,0.89999196]
[1772111756765,7.62624516,2065.3,2064.5,0.89999196]
[1772111756968,4.05120448,2065.6,2064.5,0.89999196]
[1772111757168,7.62623245,2065.5,2064.5,0.89999196]
[1772111757369,7.62623245,2065.4,2064.5,0.89999196]
[1772111757559,7.62623245,2065.3,2064.5,0.89999196]
[1772111757764,7.62623245,2065.2,2064.5,0.89999196]
[1772111757964,4.05120448,2065.5,2064.5,0.89999196]
[1772111758160,7.6267796,2065.4,2064.5,0.89999196]
[1772111758364,7.6267796,2065.3,2064.5,0.89999196]
[1772111758566,7.6267796,2065.2,2064.5,0.89999196]
[1772111758764,4.05120448,2065.5,2064.5,0.89999196]
[1772111758970,7.62677894,2065.4,2064.5,0.89999196]
[1772111759172,7.62677894,2065.3,2064.5,0.89999196]
[1772111759472,7.62677894,2065.2,2064.5,0.89999196]
[1772111759673,4.05120448,2065.5,2064.5,0.89999196]
[1772111759873,7.62677666,2065.4,2064.5,0.89999196]
[1772111760072,7.62677666,2065.3,2064.5,0.89999196]
[1772111760269,4.05120448,2065.6,2064.7,0.91426648]
[1772111760474,7.62613478,2065.5,2064.7,0.91426648]
[1772111760669,7.62613478,2065.4,2064.7,0.91426648]
[1772111760874,4.05701605,2065.7,2064.7,0.91426648]
[1772111761175,7.60032523,2065.6,2064.7,0.91426648]
[1772111761371,7.60032523,2065.5,2064.7,0.91426648]
[1772111761571,7.60032523,2065.4,2064.7,0.91426648]
[1772111761774,4.05701605,2065.7,2064.7,0.91426648]
[1772111761975,7.59791373,2065.6,2064.7,0.91426648]
[1772111762174,7.59791373,2065.5,2064.7,0.91426648]
[1772111762474,7.59791373,2065.4,2064.7,0.91426648]
[1772111762675,4.05701605,2065.7,2064.7,0.91426648]
[1772111762974,7.53611249,2065.6,2064.7,0.91426648]
[1772111763175,7.53611249,2065.5,2064.7,0.91426648]
[1772111763374,7.53611249,2065.4,2064.7,0.91426648]
[1772111763579,4.05701605,2065.7,2064.7,0.91426648]
[1772111763781,7.53599563,2065.6,2064.7,0.91426648]
[1772111764074,0.00581157,2065.7,2064.9,0.92459936]
[1772111764280,7.53633752,2065.6,2065.1,0.92459936]
[1772111764481,0.00581157,2065.7,2065.1,0.92459936]
[1772111764674,7.50895537,2065.6,2065.1,0.92459936]
[1772111764874,0.00581157,2065.7,2065.1,0.92459936]
[1772111765076,7.50895689,2065.6,2065.1,0.92459936]
[1772111765281,0.00581157,2065.7,2065.1,0.92459936]
[1772111765484,7.50835893,2065.6,2065.1,0.92459936]
[1772111765687,0.00581157,2065.7,2065.1,0.92459936]
[1772111765983,7.50835893,2065.6,2065.1,0.92459936]
[1772111766184,0.00581157,2065.7,2065.1,0.92459936]
[1772111766384,7.508205,2065.6,2065.1,0.92459936]
[1772111766582,0.00581157,2065.7,2065.0,7.26733806]
[1772111766788,7.50865432,2065.6,2065.0,7.26733806]
[1772111766987,0.00581157,2065.7,2065.0,7.26733806]
[1772111767186,7.50859617,2065.6,2065.0,6.342]
[1772111767380,0.00581157,2065.7,2065.0,6.342]
[1772111767582,7.50938926,2065.6,2065.0,5.87761189]
[1772111767785,0.00581157,2065.7,2065.0,5.41553121]
[1772111768090,7.50939322,2065.6,2065.0,5.41553121]
[1772111768289,7.50939322,2065.5,2065.0,5.41553121]
[1772111768481,0.00581157,2065.7,2065.0,5.41553121]
[1772111768683,7.50987367,2065.6,2065.0,5.41553121]
[1772111768889,0.00581157,2065.7,2065.0,5.41553121]
[1772111769090,7.50987098,2065.6,2065.0,5.41553121]
[1772111769289,7.50987098,2065.5,2065.0,5.41553121]
[1772111769487,0.00581157,2065.7,2065.0,5.41553121]
[1772111769686,7.44001031,2065.6,2065.0,5.41553121]
[1772111769889,0.00581157,2065.7,2065.0,5.41553121]
[1772111770088,7.44001097,2065.6,2065.0,5.41553121]
[1772111770383,0.00581157,2065.7,2065.0,5.41553121]
[1772111770587,7.44111774,2065.6,2065.0,6.33180543]
[1772111770794,0.00581157,2065.7,2065.1,0.91627422]
[1772111771091,7.44109243,2065.6,2065.0,5.41553121]
[1772111771292,0.00581157,2065.7,2065.0,6.33180543]
[1772111771492,7.4403,2065.6,2065.0,6.33180543]
[1772111771693,0.00581157,2065.7,2065.0,6.33180543]
[1772111771992,7.44030236,2065.6,2065.1,0.91709823]
[1772111772193,0.00581157,2065.7,2065.1,0.91709823]
[1772111772389,7.43974914,2065.6,2065.1,0.91709823]
[1772111772590,0.00581157,2065.7,2065.1,0.91709823]
[1772111772792,7.43974979,2065.6,2065.1,0.91709823]
[1772111772992,0.00581157,2065.7,2065.1,0.91709823]
[1772111773193,7.43967271,2065.6,2065.1,0.91709823]
[1772111773394,0.00581157,2065.7,2065.1,0.91709823]
[1772111773695,7.43964484,2065.6,2065.1,0.91709823]
[1772111773894,0.00581157,2065.7,2065.1,0.91709823]
[1772111774194,7.43966369,2065.6,2065.1,0.91709823]
[1772111774392,0.00581157,2065.7,2065.1,0.91709823]
[1772111774588,7.43981564,2065.6,2065.1,0.91709823]
[1772111774894,0.00581157,2065.7,2065.0,5.41553121]
[1772111775099,7.44005803,2065.6,2065.0,5.41553121]
[1772111775298,0.00581157,2065.7,2065.0,5.41553121]
[1772111775492,7.44047493,2065.6,2065.0,5.41553121]
[1772111775798,0.00581157,2065.7,2065.0,5.41553121]
[1772111776091,7.44047712,2065.6,2065.0,5.41553121]
[1772111776297,0.00581157,2065.7,2065.0,6.33768948]
[1772111776493,7.4405971,2065.6,2065.0,0.92215827]
[1772111776698,0.00581157,2065.7,2065.0,7.26415827]
[1772111776898,7.44070245,2065.6,2065.0,7.26415827]
[1772111777196,0.00581157,2065.7,2065.0,7.26415827]
[1772111777399,7.44083875,2065.6,2065.0,7.26415827]
[1772111777598,0.00581157,2065.7,2065.0,7.26415827]
[1772111777794,7.44083761,2065.6,2065.0,7.26415827]
[1772111777995,0.00581157,2065.7,2065.0,7.26415827]
[1772111778196,7.44090158,2065.6,2065.0,7.26415827]
[1772111778391,0.00581157,2065.7,2065.0,7.26415827]
[1772111778596,7.44112285,2065.6,2065.0,7.26415827]
[1772111778798,0.00581157,2065.7,2065.0,7.26415827]
[1772111779100,7.44111326,2065.6,2065.0,7.26415827]
[1772111779395,0.00581157,2065.7,2065.0,7.26415827]
[1772111779597,7.44149451,2065.6,2065.0,7.26415827]
[1772111779899,0.00581157,2065.7,2065.0,7.26415827]
[1772111780098,7.44149542,2065.6,2065.0,7.26415827]
[1772111780298,0.00581157,2065.7,2065.0,7.26415827]
[1772111780597,7.44199771,2065.6,2065.0,7.26415827]
[1772111780797,0.00581157,2065.7,2065.0,7.26415827]
[1772111780997,7.44199781,2065.6,2065.0,7.26415827]
[1772111781201,0.00581157,2065.7,2065.0,7.26415827]
[1772111781398,7.44263449,2065.6,2065.1,0.93888012]
[1772111781595,0.00581157,2065.7,2065.1,0.93888012]
[1772111781796,7.44263449,2065.6,2065.1,0.93888012]
[1772111782000,0.00581157,2065.7,2065.1,0.93888012]
[1772111782201,7.44261473,2065.6,2065.1,0.93888012]
[1772111782402,0.00581157,2065.7,2065.1,0.93888012]
[1772111782700,7.44338762,2065.6,2065.1,0.93888012]
[1772111782999,0.00581157,2065.7,2065.1,0.93888012]
[1772111783199,7.44318603,2065.6,2065.1,0.93888012]
[1772111783401,0.00581157,2065.7,2065.1,0.93888012]
[1772111783597,7.44399414,2065.6,2065.1,0.93888012]
[1772111783798,0.00581157,2065.7,2065.1,0.93888012]
[1772111784001,7.44399368,2065.6,2065.1,0.93888012]
[1772111784302,0.00581157,2065.7,2065.1,0.93888012]
[1772111784512,1.18182988,2065.5,2064.4,0.94336352]
[1772111784804,1.18182988,2065.2,2064.5,7.28536352]
[1772111785304,1.18182988,2065.5,2064.5,7.28536352]
[1772111785796,1.42388988,2065.5,2064.6,0.94409543]
[1772111787700,0.24206,2065.5,2064.6,0.94409543]
[1772111788700,0.00581157,2065.7,2064.6,0.94409543]
[1772111788903,7.44441327,2065.6,2064.6,0.94409543]
[1772111789204,0.00581157,2065.7,2064.6,0.94409543]
[1772111789403,7.44505688,2065.6,2064.6,0.94409543]
[1772111789603,0.00581157,2065.7,2064.6,0.94409543]
[1772111789804,7.33250139,2065.6,2064.6,0.94409543]
[1772111790005,0.00581157,2065.7,2064.6,0.94409543]
[1772111790202,7.33250344,2065.6,2064.6,0.94409543]
[1772111790403,0.00581157,2065.7,2064.6,0.94409543]
[1772111790604,7.33236278,2065.6,2064.6,0.94409543]
[1772111790902,0.00581157,2065.7,2064.6,0.94409543]
[1772111791096,7.29132086,2065.6,2064.6,0.94409543]
[1772111791298,0.00581157,2065.7,2064.6,0.94409543]
[1772111791602,7.2911096,2065.6,2064.6,0.94409543]
[1772111791905,0.00581157,2065.7,2064.6,0.94409543]
[1772111792106,7.26994649,2065.6,2064.6,0.94409543]
[1772111792304,0.00581157,2065.7,2064.6,0.94409543]
[1772111792503,7.26974438,2065.6,2064.6,0.94409543]
[1772111792703,0.00581157,2065.7,2064.6,0.94409543]
[1772111792904,7.26974852,2065.6,2064.6,0.94409543]
[1772111793204,0.00581157,2065.7,2064.6,0.94409543]
[1772111793502,7.27011572,2065.6,2064.6,0.94409543]
[1772111793706,1.18182988,2065.5,2064.6,0.94409543]
[1772111794105,0.00581157,2065.7,2064.6,0.94409543]
[1772111794305,7.26950252,2065.6,2064.6,0.94409543]
[1772111794500,7.26952731,2065.5,2064.6,0.94409543]
[1772111794700,1.18182988,2065.5,2064.6,0.94409543]
[1772111795006,0.00581157,2065.7,2064.6,0.94409543]
[1772111795205,1.18195956,2065.4,2064.6,0.94409543]
[1772111795906,1.18195956,2065.6,2064.6,0.94409543]
[1772111796109,0.00581157,2065.7,2064.8,0.96563434]
[1772111796307,7.26975216,2065.6,2064.8,0.96563434]
[1772111796608,0.00581157,2065.7,2064.8,0.96563434]
[1772111796808,8.45165092,2065.6,2064.8,0.96563434]
[1772111797010,1.18195956,2065.6,2064.8,0.96563434]
[1772111798208,0.00581157,2065.7,2065.0,0.96604528]
[1772111799009,0.00581157,2065.7,2065.1,0.96756969]
[1772111807621,1.18195956,2065.6,2065.1,0.96756969]
[1772111809422,0.00581157,2065.7,2065.1,0.96756969]
[1772111812526,0.00581157,2065.7,2065.3,0.97199235]
[1772111812727,1.18195956,2066.6,2065.7,0.97199235]
[1772111813727,1.18666553,2066.6,2065.7,0.97754676]
[1772111816428,0.00470597,2066.6,2065.9,0.97675811]
[1772111816826,1.18195956,2066.2,2065.7,0.98231252]
[1772111817526,1.18195956,2066.4,2065.7,0.98231252]
[1772111819828,1.18195956,2066.2,2065.7,0.00555441]
[1772111820033,1.18195956,2066.0,2065.7,0.00555441]
[1772111820234,1.18195956,2066.0,2065.1,0.97748719]
[1772111821333,1.18195956,2066.0,2065.1,0.98286979]
[1772111822333,1.18195956,2066.0,2065.2,1.00963028]
[1772111822630,0.24195,2066.5,2065.6,1.00963028]
[1772111822832,1.18195956,2066.4,2065.6,1.00963028]
[1772111823327,1.18195956,2066.2,2065.6,1.00963028]
[1772111823528,1.18195956,2066.2,2065.5,1.01013788]
[1772111823729,1.18195956,2066.0,2065.1,1.18734216]
[1772111823930,1.18195956,2066.0,2065.2,1.01013788]
[1772111824836,1.18195956,2066.5,2065.5,1.18195956]
[1772111825035,1.18195956,2066.5,2065.6,1.04361689]
[1772111825235,10.38070597,2066.6,2065.6,1.04361689]
[1772111825435,6.78748965,2066.5,2065.6,1.04361689]
[1772111825637,10.38070597,2066.6,2065.6,1.04361689]
[1772111825837,6.78748817,2066.5,2065.6,1.04361689]
[1772111826137,10.38070597,2066.6,2065.6,1.04361689]
[1772111826437,6.78882712,2066.5,2065.6,1.04361689]
[1772111826734,10.38070597,2066.6,2065.6,1.04361689]
[1772111831140,0.24194,2066.5,2065.6,1.04361689]
[1772111834447,0.24197,2066.3,2065.4,1.05058983]
[1772111834644,2.01317804,2066.3,2065.2,1.05058983]
[1772111836449,2.01321804,2066.0,2065.1,1.05724638]
[1772111836649,12.43221804,2066.0,2065.1,1.05724638]
[1772111836843,10.66101,2066.0,2065.1,1.05724638]
[1772111838445,1.77120804,2066.3,2065.1,1.05724638]
[1772111838651,10.65796,2066.4,2065.1,1.05724638]
[1772111842254,8.54303943,2066.3,2065.1,1.05724638]
[1772111842452,1.77120804,2066.3,2065.1,1.05724638]
[1772111843456,6.77112603,2066.2,2065.1,1.05724638]
[1772111843653,1.77120804,2066.3,2065.1,1.05724638]
[1772111843957,6.77111245,2066.2,2065.1,1.05724638]
[1772111844153,0.24198,2066.2,2065.1,1.05724638]
[1772111847359,1.18135182,2065.9,2065.1,1.05724638]
[1772111849560,10.416,2066.4,2065.6,1.0784588]
[1772111849758,1.18135182,2066.2,2065.4,1.0784588]
[1772111849959,1.18135182,2066.0,2065.4,1.0784588]
[1772111851365,1.18135182,2065.8,2065.2,1.07833444]
[1772111854169,1.18135182,2065.6,2065.1,1.09110538]
[1772111854667,1.18135182,2065.6,2065.1,0.0053826]
[1772111855462,1.18135182,2065.4,2064.6,1.07875122]
[1772111856468,1.18135182,2065.4,2064.6,1.08385516]
[1772111857369,40.8,2065.6,2064.6,1.08385516]
[1772111859772,0.24204,2065.7,2064.6,1.08385516]
[1772111860170,41.04204,2065.7,2064.6,1.08385516]
[1772111861474,10.363,2065.8,2064.6,1.32600516]
[1772111863970,11.54489123,2065.8,2064.6,1.32600516]
[1772111864269,10.363,2065.8,2064.6,1.32600516]
[1772111872286,0.24202,2065.9,2064.6,1.32600516]
[1772111873987,1.18189123,2065.8,2064.6,1.32600516]
[1772111874184,10.414,2065.7,2064.6,1.32600516]
[1772111874890,1.18189123,2065.2,2064.6,0.00510394]
[1772111875285,1.18189123,2065.5,2064.6,0.00510394]
[1772111875491,6.77074747,2065.4,2064.6,0.00510394]
[1772111875690,0.24209,2065.3,2064.6,0.00510394]
[1772111875890,1.18189123,2065.5,2064.6,1.0991779]
[1772111876188,10.65604,2065.7,2064.6,1.0991779]
[1772111876390,7.23384615,2065.6,2064.6,1.0991779]
[1772111876689,6.76986025,2065.5,2064.6,1.0991779]
[1772111876889,10.65604,2065.7,2064.6,1.0991779]
[1772111877190,7.23383104,2065.6,2064.6,1.0991779]
[1772111877489,6.76984657,2065.5,2064.6,1.0991779]
[1772111877689,10.65604,2065.7,2064.6,1.0991779]
[1772111877890,7.23321605,2065.6,2064.6,1.0991779]
[1772111878091,6.76927119,2065.5,2064.6,1.0991779]
[1772111878287,10.65604,2065.7,2064.6,1.0991779]
[1772111878488,7.23298344,2065.6,2064.6,1.0991779]
[1772111878686,6.76905376,2065.5,2064.6,1.0991779]
[1772111878892,10.65604,2065.7,2064.6,1.0991779]
[1772111879091,7.23298166,2065.6,2064.6,1.0991779]
[1772111879389,6.7690519,2065.5,2064.6,1.0991779]
[1772111879592,10.65604,2065.7,2064.6,1.0991779]
[1772111879787,7.23652769,2065.6,2064.6,1.0991779]
[1772111879988,6.7690713,2065.5,2064.6,1.0991779]
[1772111880290,10.65604,2065.7,2064.6,1.0991779]
[1772111880490,7.2380693,2065.6,2064.6,1.0991779]
[1772111880694,7.01257397,2065.5,2064.6,1.0991779]
[1772111880891,7.9524052,2065.4,2064.6,1.0991779]
[1772111881094,1.18189123,2065.4,2064.6,1.0991779]
[1772111881486,10.414,2065.7,2064.6,1.0991779]
[1772111881697,10.65601,2066.0,2064.6,1.0991779]
[1772111881988,6.77311028,2065.9,2064.6,1.0991779]
[1772111882195,10.65601,2066.0,2064.6,1.0991779]
[1772111882487,7.95677822,2065.9,2064.6,1.0991779]
[1772111882692,6.77488699,2065.8,2064.6,1.0991779]
[1772111883087,1.18189123,2065.9,2064.6,1.0991779]
[1772111883392,6.77507496,2065.8,2064.6,1.0991779]
[1772111883584,1.18189123,2065.9,2064.6,1.0991779]
[1772111883789,6.77564364,2065.8,2064.6,1.0991779]
[1772111883990,1.18189123,2065.9,2064.6,1.0991779]
[1772111884286,6.77566248,2065.8,2064.6,1.0991779]
[1772111884489,1.18189123,2065.9,2064.6,1.0991779]
[1772111884692,6.77669943,2065.8,2064.6,1.0991779]
[1772111884894,1.18189123,2065.9,2064.6,1.0991779]
[1772111885092,6.77670769,2065.8,2064.6,1.0991779]
[1772111885293,1.18189123,2065.9,2064.6,1.0991779]
[1772111885494,6.77848767,2065.8,2064.6,1.0991779]
[1772111885692,1.18189123,2065.9,2064.6,1.0991779]
[1772111885894,6.77977898,2065.8,2064.6,1.0991779]
[1772111886194,1.18189123,2065.9,2064.6,1.0991779]
[1772111886494,6.77968617,2065.8,2064.6,1.0991779]
[1772111886694,1.18189123,2065.9,2064.6,1.0991779]
[1772111886894,6.78004526,2065.8,2064.6,1.0991779]
[1772111887096,1.18189123,2065.6,2064.6,1.0991779]
[1772111887294,10.453,2065.5,2064.6,1.0991779]
[1772111894706,10.69507,2065.5,2064.6,1.0991779]
[1772111894906,1.18189123,2065.3,2064.4,1.12046468]
[1772111895907,1.18189123,2065.3,2064.4,1.12435773]
[1772111897010,6.78206794,2065.2,2064.4,1.12435773]
[1772111897213,1.18189123,2065.3,2064.4,1.12435773]
[1772111897710,1.18189123,2065.0,2064.1,1.12369193]
[1772111897906,11.61889123,2065.0,2064.1,1.12369193]
[1772111898711,11.62279031,2065.0,2064.1,1.12928854]
[1772111900007,1.18189123,2064.7,2064.1,0.00559661]
[1772111901303,40.8,2064.9,2064.1,0.00559661]
[1772111901509,6.76874013,2064.8,2064.1,0.00559661]
[1772111901709,40.8,2064.9,2064.1,0.00559661]
[1772111901912,6.76873497,2064.8,2064.1,0.00559661]
[1772111902113,40.8,2064.9,2064.1,0.00559661]
[1772111903416,6.98064103,2064.8,2064.1,0.00559661]
[1772111903604,6.98020255,2064.7,2063.8,1.1316572]
[1772111903809,41.04214,2064.9,2063.8,1.1316572]
[1772111904009,6.98037573,2064.8,2063.8,1.1316572]
[1772111904210,6.98037573,2064.7,2063.8,1.1316572]
[1772111904512,41.04214,2064.9,2063.8,1.13533244]
[1772111904711,6.97810969,2064.8,2063.8,1.13533244]
[1772111904912,6.97810969,2064.7,2063.8,1.13533244]
[1772111905113,41.04214,2064.9,2063.8,1.13533244]
[1772111905314,6.97808667,2064.8,2063.8,1.13533244]
[1772111905514,6.97758448,2064.7,2063.8,1.13533244]
[1772111905714,41.04214,2064.9,2063.8,1.13533244]
[1772111905915,6.97758643,2064.8,2063.8,1.13533244]
[1772111906116,6.97758643,2064.7,2063.8,1.13533244]
[1772111906318,41.04214,2064.9,2063.8,1.13533244]
[1772111906517,0.24215,2064.7,2063.8,1.13533244]
[1772111906718,10.499,2064.6,2063.8,1.13533244]
[1772111907518,10.499,2064.6,2063.8,0.00367524]
[1772111907917,10.499,2064.6,2063.8,1.13611982]
[1772111908621,10.499,2064.6,2063.8,0.00367524]
[1772111910418,10.499,2064.6,2063.8,1.13942851]
[1772111913119,10.499,2064.6,2062.6,20.31669561]
[1772111913120,0.24218,2064.5,2063.7,1.13698157]
[1772111913321,0.24218,2064.5,2063.2,1.13698157]
[1772111913521,0.24218,2064.5,2063.1,0.24234]
[1772111913522,0.24218,2064.5,2063.4,1.13698157]
[1772111914221,0.24218,2064.5,2063.4,1.14184949]
[1772111916226,6.96635696,2064.4,2063.4,1.14184949]
[1772111916523,0.24218,2064.5,2063.4,1.14184949]
[1772111916723,0.2422,2064.3,2063.4,1.14184949]
[1772111917322,0.2422,2064.3,2063.0,1.13621934]
[1772111917323,0.24225,2063.9,2063.0,1.13621934]
[1772111917622,10.54,2063.8,2063.0,1.13621934]
[1772111918224,10.54,2063.8,2063.0,1.14183058]
[1772111919726,12.31638703,2063.8,2063.0,1.14183058]
[1772111920425,6.97161105,2063.7,2062.8,1.13887416]
[1772111920726,40.8,2063.6,2062.8,1.13887416]
[1772111921326,41.9840761,2063.6,2062.8,1.14327903]
[1772111922431,1.1840761,2063.4,2062.8,1.14327903]
[1772111922628,1.18979368,2063.4,2062.8,1.14327903]
[1772111923129,0.00571758,2063.4,2062.8,1.14327903]
[1772111923334,0.0160828,2063.1,2062.7,0.57703067]
[1772111923630,0.01619406,2062.7,2062.0,0.57703067]
[1772111923828,1.20027016,2062.8,2062.0,0.57703067]
[1772111924335,0.01619406,2062.7,2062.0,0.58056782]
[1772111926135,10.572,2062.8,2062.0,0.58056782]
[1772111926636,10.63318535,2062.8,2062.0,0.58056782]
[1772111926837,0.05703458,2062.7,2062.0,0.58056782]
[1772111928637,10.6193028,2062.8,2062.0,0.58056782]
[1772111928936,0.24235,2063.1,2062.0,0.58056782]
[1772111928937,0.2896528,2063.1,2062.0,0.58056782]
[1772111929436,0.0473028,2063.0,2062.0,0.58056782]
[1772111931038,10.576,2063.3,2062.0,0.58056782]
[1772111931239,10.61600181,2063.3,2062.2,0.57703067]
[1772111932347,0.03535421,2063.2,2062.2,0.57703067]
[1772111934542,0.03139599,2063.1,2062.2,0.57703067]
[1772111934933,0.02734523,2063.2,2062.2,0.57703067]
[1772111935430,10.576,2063.3,2062.2,0.57703067]
[1772111935638,10.59620179,2063.3,2062.2,0.57703067]
[1772111935840,0.00571758,2063.4,2062.4,0.57703067]
[1772111936538,0.00571758,2063.4,2062.5,0.24241]
[1772111936743,0.00571758,2063.4,2062.6,0.56834901]
[1772111938736,41.04224,2064.0,2062.5,0.24241]
[1772111938737,0.02064982,2064.0,2062.8,0.56711712]
[1772111939741,0.02582077,2064.0,2062.8,0.56711712]
[1772111940543,0.00517095,2064.0,2063.0,0.56638929]
[1772111940746,0.00517095,2064.0,2063.2,0.56638956]
[1772111942649,0.03322482,2064.0,2063.2,0.56638956]
[1772111944850,0.00517095,2064.0,2063.2,0.56638956]
[1772111946943,0.02742487,2064.4,2063.2,0.56638956]
[1772111947542,0.02742487,2064.4,2063.4,0.56368311]
[1772111947747,10.615,2064.5,2063.5,0.56271857]
[1772111947946,0.00531182,2064.5,2063.5,0.56797008]
[1772111948547,0.00531182,2064.5,2063.5,6.91197008]
[1772111948855,0.00531182,2064.5,2063.6,0.56271884]
[1772111953259,10.64533659,2064.9,2063.7,0.5601951]
[1772111953459,0.03433659,2065.0,2063.9,0.5601951]
[1772111953961,0.03543562,2065.2,2064.1,0.55964045]
[1772111954461,0.03966416,2065.2,2064.1,0.55964045]
[1772111956663,0.03923061,2065.0,2064.1,0.55964045]
[1772111957269,0.03923061,2064.9,2064.1,0.55964045]
[1772111957863,0.04157373,2064.7,2063.9,0.5565514]
[1772111962070,0.04157373,2064.7,2063.6,0.55800182]
[1772111962370,0.03863471,2064.5,2063.6,0.55800182]
[1772111962575,0.03863471,2064.3,2063.6,0.55800182]
[1772111968072,6.91872105,2064.2,2063.6,0.55800182]
[1772111968278,0.03921743,2064.1,2063.6,0.55800182]
[1772111969570,0.03921743,2064.1,2063.5,0.56308092]
[1772111969777,7.26144238,2064.0,2063.5,0.56308092]
[1772111970076,0.03921743,2064.1,2063.5,0.56308092]
[1772111970276,7.29890468,2064.0,2063.5,0.56308092]
[1772111970478,0.03775253,2064.0,2063.5,0.56308092]
[1772111971482,14.71794817,2064.4,2063.5,0.56308092]
[1772111971680,7.83167087,2064.3,2063.5,0.56308092]
[1772111971874,7.26100554,2064.2,2063.5,0.56308092]
[1772111973273,7.26100554,2064.1,2063.5,0.56308092]
[1772111973470,0.03826217,2064.3,2063.5,0.56308092]
[1772111973677,7.26220875,2064.2,2063.5,0.56308092]
[1772111973878,7.26220875,2064.1,2063.5,0.56308092]
[1772111974077,0.03826217,2064.3,2063.5,0.56308092]
[1772111974279,14.68020448,2064.4,2063.5,0.56308092]
[1772111974280,0.04054585,2064.1,2063.5,0.56308092]
[1772111974476,0.04054585,2063.9,2063.3,0.55714]
[1772111975274,0.0405374,2063.8,2063.3,1e-08]
[1772111975576,0.0405374,2063.8,2063.3,0.00372353]
[1772111975881,0.0405374,2063.8,2062.7,0.52829561]
[1772111976677,0.0405374,2063.8,2062.7,0.5319979]
[1772111978885,0.54560866,2063.6,2062.7,0.5319979]
[1772111979182,0.55058957,2063.6,2062.7,0.5319979]
[1772111987189,0.00498091,2063.6,2062.7,0.5319979]
[1772111987389,0.55058957,2063.6,2062.7,0.5319979]
[1772111988293,0.54560866,2063.4,2062.7,0.5319979]
[1772111988482,10.703,2063.4,2062.7,0.5319979]
[1772111989491,0.55058957,2063.6,2062.7,0.5319979]
[1772111989791,7.80348727,2063.5,2062.7,0.5319979]
[1772111989991,0.54560866,2063.5,2062.7,0.5319979]
[1772111999499,0.00498091,2063.6,2062.7,0.5319979]
[1772112000202,0.00498091,2063.6,2062.9,0.54111699]
[1772112000395,0.53505945,2063.9,2062.9,0.54111699]
[1772112000595,7.23401408,2063.8,2062.9,0.54111699]
[1772112000890,0.53505945,2063.9,2063.0,0.54111699]
[1772112000891,10.746,2063.9,2063.0,0.54111699]
[1772112001096,0.53505945,2063.8,2063.0,0.54111699]
[1772112001294,0.00349164,2063.8,2063.2,0.54111699]
[1772112001489,4.58626393,2064.2,2063.2,0.54111699]
[1772112001490,0.53505945,2064.1,2063.2,0.54111699]
[1772112002097,0.53505945,2064.3,2063.2,0.54111699]
[1772112002499,0.53959626,2064.3,2063.2,0.54111699]
[1772112003896,7.61547033,2064.2,2063.2,0.12103699]
[1772112004098,0.53505945,2064.1,2063.2,0.12103699]
[1772112017216,0.53505945,2064.2,2063.5,0.54111699]
[1772112024319,0.53505945,2064.2,2062.9,0.54111699]
[1772112024717,0.53505945,2064.2,2063.0,0.54111699]
[1772112027523,0.55703945,2064.0,2063.0,0.54111699]
[1772112031422,0.55703945,2063.8,2063.0,0.54111699]
[1772112036028,0.55703945,2064.0,2063.2,0.54662048]
[1772112036224,7.83232562,2063.9,2063.2,0.54662048]
[1772112036423,0.55703945,2063.9,2063.2,0.54662048]
[1772112036819,0.55703945,2064.1,2063.2,0.54662048]
[1772112037019,7.82932015,2064.0,2063.2,0.54662048]
[1772112037226,0.55703945,2064.0,2063.2,0.54662048]
[1772112038331,0.52031554,2064.1,2063.4,0.54895085]
[1772112038529,7.27238833,2064.0,2063.4,0.54895085]
[1772112038725,0.52031554,2064.1,2063.4,0.54895085]
[1772112038926,0.00453681,2064.3,2063.6,0.54895085]
[1772112039323,0.00453681,2064.3,2064.0,0.54895085]
[1772112039632,0.52031554,2064.6,2064.0,0.54895085]
[1772112039833,7.6448262,2064.5,2064.0,0.54895085]
[1772112040129,0.52031554,2064.5,2064.0,0.54895085]
[1772112040630,0.52646513,2064.5,2064.0,0.54895085]
[1772112043029,0.52031554,2064.9,2064.2,0.54895085]
[1772112043428,0.52031554,2065.1,2064.4,0.54895085]
[1772112044032,0.52557385,2065.1,2064.4,0.55340845]
[1772112045535,0.00525831,2065.1,2064.6,0.54895085]
[1772112045736,0.52557385,2065.1,2064.6,0.54895085]
[1772112059139,0.54853264,2065.1,2064.6,0.54895085]
[1772112061634,0.54327433,2064.7,2064.1,0.55974645]
[1772112062633,0.54327433,2064.7,2064.1,0.56597103]
[1772112062836,0.54327433,2064.5,2064.1,0.00622458]
[1772112064038,0.54327433,2064.5,2063.9,6.90474645]
[1772112064232,0.54327433,2064.3,2063.7,0.55974645]
[1772112064639,0.54327433,2064.1,2063.7,0.55974645]
[1772112065137,0.54327433,2064.1,2063.5,0.55974645]
[1772112066141,0.54327433,2064.1,2063.5,0.56502264]
[1772112066337,1.18271626,2064.0,2063.5,0.56502264]
[1772112066536,0.54327433,2063.9,2063.3,0.55974645]
[1772112066741,0.54327433,2063.9,2063.4,0.55974645]
[1772112067443,0.54327433,2063.9,2063.4,0.56400365]
[1772112068246,0.54327433,2064.1,2063.4,0.56400365]
[1772112068446,0.54327433,2064.1,2063.6,0.55974645]
[1772112081558,0.54327433,2064.3,2063.6,0.55974645]
[1772112081856,0.54327433,2064.4,2063.8,0.55974645]
[1772112086260,0.54327433,2064.4,2063.9,0.53776109]
[1772112088160,0.5590199,2064.3,2063.6,0.53776109]
[1772112089062,0.5590199,2064.1,2063.6,0.53776109]
[1772112089761,0.5590199,2064.1,2063.5,0.53776109]
[1772112092265,0.5590199,2063.9,2063.4,0.54201829]
[1772112092466,0.5590199,2063.7,2063.1,0.53776109]
[1772112093470,0.5590199,2063.7,2063.1,0.54286846]
[1772112094564,0.5590199,2063.3,2062.8,0.53776109]
[1772112094868,0.5590199,2063.4,2062.8,0.53776109]
[1772112095068,0.5590199,2063.5,2063.1,0.53776109]
[1772112095568,0.56497451,2063.5,2063.1,0.54271995]
[1772112096168,0.00595461,2063.5,2063.1,0.54271995]
[1772112097173,0.52913083,2063.5,2063.1,0.54271995]
[1772112097362,0.52317622,2063.3,2062.8,0.55609233]
[1772112098273,0.52317622,2063.3,2062.7,0.55609233]
[1772112098473,0.52317622,2063.3,2062.8,0.56000619]
[1772112100073,0.52913083,2063.5,2062.8,0.56000619]
[1772112100278,0.00595461,2063.5,2062.9,0.55609233]
[1772112100474,0.00595461,2063.5,2063.0,1.18271626]
[1772112100678,0.00595461,2063.5,2063.1,0.55609233]
[1772112100873,0.52317622,2063.8,2063.1,0.55609233]
[1772112101077,11.25517622,2063.9,2063.1,0.55609233]
[1772112101475,0.52317622,2063.8,2063.1,0.55609233]
[1772112101881,0.52715757,2063.8,2063.1,0.55609233]